bitfinex-derivatives/quotes_SOLF0:USTF0_20250329
["timestamp","ask_amount","ask_price","bid_price","bid_amount"]
[1743260703515,2.0317,126.13,126.12,29.7]
[1743260703812,11.99,126.14,126.12,37.6327]
[1743260704013,11.99,126.14,126.12,29.7]
[1743260704513,11.99,126.14,126.13,7.9321]
[1743260705012,0.05214969,126.15,126.12,29.7]
[1743260705209,0.05214969,126.15,126.13,7.9321]
[1743260705507,7.98304969,126.15,126.12,29.7]
[1743260705709,0.05214969,126.15,126.13,7.932]
[1743260706516,0.05214969,126.15,126.12,29.7]
[1743260706815,6.56685517,126.15,126.11,29.51142618]
[1743260707011,6.56685517,126.15,126.11,26.38142618]
[1743260707012,7.9327,126.12,126.11,26.38142618]
[1743260707910,7.9333,126.11,126.1,10.99396663]
[1743260709909,7.9333,126.11,126.09,29.63568031]
[1743260710318,0.05763868,126.12,126.09,29.63568031]
[1743260711715,0.05763868,126.12,126.09,36.15038579]
[1743260712414,0.05763868,126.12,126.11,14.44800548]
[1743260713915,0.05763868,126.12,126.11,15.8735167]
[1743260714717,0.05763868,126.12,126.11,15.87217597]
[1743260716120,0.05763868,126.12,126.11,15.87217304]
[1743260716722,21.8268,126.18,126.11,134.18673431]
[1743260717014,21.8268,126.18,126.14,6.51336182]
[1743260717218,7.9302,126.17,126.15,29.5]
[1743260717920,7.9302,126.16,126.15,29.56002154]
[1743260718119,0.04593719,126.17,126.15,29.56002154]
[1743260719121,7.97593719,126.17,126.15,29.56002154]
[1743260719717,7.9302,126.16,126.15,29.56002154]
[1743260720626,0.04593719,126.17,126.15,29.56002154]
[1743260721027,12.03593719,126.17,126.15,29.56002154]
[1743260721427,12.03593719,126.17,126.15,37.49082154]
[1743260721624,12.03593719,126.17,126.15,29.56002154]
[1743260722221,19.96553719,126.17,126.15,29.56002154]
[1743260729339,7.9302,126.16,126.15,29.56002154]
[1743260729532,7.9302,126.16,126.15,0.06002154]
[1743260735129,7.9328,126.12,126.1,7.9337]
[1743260735330,18.50336182,126.17,126.11,35.75336182]
[1743260736440,0.05090856,126.15,126.13,0.05671152]
[1743260736628,0.05090856,126.15,126.14,29.24]
[1743260737341,7.98180856,126.15,126.14,29.24]
[1743260741840,7.9315,126.14,126.13,0.05671152]
[1743260744447,7.9333,126.11,126.1,73.22817968]
[1743260745147,7.9333,126.11,126.1,44.00817968]
[1743260745949,0.0605659,126.12,126.09,73.26911212]
[1743260746151,19.8805659,126.12,126.09,73.26911212]
[1743260748346,7.9333,126.11,126.09,73.26911212]
[1743260748850,19.8805659,126.12,126.09,73.26911212]
[1743260749652,19.8805659,126.12,126.09,29.26093244]
[1743260749846,7.934,126.1,126.09,29.26093244]
[1743260750047,7.934,126.1,126.09,0.06093244]
[1743260751448,5.0897024,126.1,126.06,44.00817968]
[1743260751653,6.51336182,126.09,126.06,11.02627977]
[1743260752545,7.9359,126.07,126.06,11.07745077]
[1743260755560,7.9359,126.07,126.06,0.051171]
[1743260756352,7.9359,126.07,126.05,29.12]
[1743260756353,7.9382,126.04,126.03,29.06]
[1743260756659,7.9382,126.04,126.01,44.00817968]
[1743260756660,6.51336182,126.07,126.02,29.16]
[1743260757060,6.51336182,126.07,126.01,44.00817968]
[1743260757456,6.51336182,126.05,126.01,44.00817968]
[1743260757650,6.56793863,126.05,126.03,0.0578759]
[1743260757855,7.9379,126.04,126.03,0.0578759]
[1743260759159,7.9396,126.01,126.0,44.00817968]
[1743260759360,7.9396,126.01,126.0,73.20817968]
[1743260759757,7.9396,126.01,126.0,44.00817968]
[1743260760960,7.99926511,126.02,126.0,44.00817968]
[1743260761161,7.99926511,126.02,125.99,29.23192388]
[1743260761359,7.99926511,126.02,125.99,29.21192388]
[1743260762669,7.99926511,126.02,125.99,37.15282388]
[1743260762868,1.06,126.01,125.99,37.15282388]
[1743260763070,1.06,126.01,125.99,29.21192388]
[1743260763269,1.06,126.01,126.0,7.9403]
[1743260764273,1.06,126.01,126.0,14.45366182]
[1743260764469,6.51336182,126.1,126.0,14.45336182]
[1743260764770,6.51336182,126.1,126.04,6.51336182]
[1743260764969,42.71,126.08,126.05,29.16]
[1743260765170,42.71,126.08,126.06,7.9362]
[1743260765770,42.76337744,126.08,126.06,7.98706274]
[1743260765970,42.76337744,126.08,126.07,7.9359]
[1743260768069,42.76337744,126.08,126.06,14.50042456]
[1743260768673,42.76337744,126.08,126.06,0.05086274]
[1743260769167,49.27673926,126.08,126.01,9.9205]
[1743260769469,49.27673926,126.08,126.02,29.18]
[1743260769665,7.9365,126.07,126.03,7.9381]
[1743260769870,49.27673926,126.08,126.03,7.9381]
[1743260770071,49.27673926,126.08,126.02,35.69336182]
[1743260770273,7.9371,126.06,126.02,43.63206182]
[1743260770469,49.22336182,126.08,126.04,0.05885237]
[1743260770673,0.05910093,126.05,126.04,0.05885237]
[1743260770874,7.99620093,126.05,126.04,0.05885237]
[1743260773467,0.05910093,126.05,126.04,0.05885237]
[1743260774074,7.99620093,126.05,126.04,0.05885237]
[1743260774579,0.05910093,126.05,126.04,0.05885237]
[1743260774971,0.05910093,126.05,126.04,7.99655237]
[1743260776170,42.71,126.08,126.06,7.9359]
[1743260776375,42.71,126.08,126.07,29.18]
[1743260777579,30.71,126.08,126.07,29.18]
[1743260777783,30.71,126.08,126.07,37.1159]
[1743260779683,30.71,126.08,126.07,43.62926182]
[1743260784389,30.71,126.08,126.07,29.18]
[1743260785090,30.71,126.08,126.07,37.1159]
[1743260786190,30.71,126.08,126.07,29.18]
[1743260794696,30.71,126.08,126.07,43.62926182]
[1743260804199,53.53310908,126.09,126.08,7.9352]
[1743260806201,41.53310908,126.09,126.08,7.9352]
[1743260813507,22.88310908,126.09,126.08,9.36109037]
[1743260813710,0.05310908,126.09,126.08,9.36109037]
[1743260813904,0.05310908,126.09,126.08,14.68111804]
[1743260814303,12.0,126.1,126.09,7.9346]
[1743260814507,12.0,126.1,126.09,14.44796182]
[1743260814803,11.8910538,126.1,126.09,14.44796182]
[1743260815109,2.0406,126.16,126.09,7.93904351]
[1743260815306,2.0406,126.16,126.1,35.09336182]
[1743260815510,0.05005181,126.14,126.11,28.63730944]
[1743260815908,7.9327,126.13,126.11,28.63730944]
[1743260816207,2.19195181,126.14,126.11,28.63730944]
[1743260816810,7.9321,126.13,126.11,28.63730944]
[1743260817410,2.19195181,126.14,126.11,28.63730944]
[1743260818007,0.05005181,126.14,126.11,28.63730944]
[1743260818612,0.05005181,126.14,126.12,7.9324]
[1743260819114,7.98155181,126.14,126.12,7.9324]
[1743260819311,7.98155181,126.14,126.11,43.08367126]
[1743260820610,7.98155181,126.14,126.12,7.9327]
[1743260822009,0.05005181,126.14,126.12,7.9327]
[1743260824510,0.05005181,126.14,126.13,7.9321]
[1743260824713,0.05005181,126.14,126.11,35.15067126]
[1743260825011,7.9327,126.12,126.11,28.63730944]
[1743260825813,7.934,126.1,126.09,11.02627977]
[1743260826012,7.934,126.1,126.09,39.56627977]
[1743260826610,7.9336,126.11,126.09,39.56627977]
[1743260826805,6.51336182,126.14,126.09,39.56627977]
[1743260827009,0.05841481,126.11,126.09,39.6238015]
[1743260828115,19.87841481,126.11,126.09,39.6238015]
[1743260828711,19.87841481,126.11,126.09,28.59752173]
[1743260829612,19.87841481,126.11,126.09,35.11088355]
[1743260830214,19.87841481,126.11,126.1,7.934]
[1743260836021,19.87841481,126.11,126.09,43.04518355]
[1743260836613,19.87841481,126.11,126.08,44.00817968]
[1743260836825,21.95031481,126.11,126.08,72.50817968]
[1743260837124,7.934,126.1,126.09,11.02627977]
[1743260837313,7.934,126.1,126.09,7.75587977]
[1743260837508,13.0347927,126.1,126.09,7.75587977]
[1743260837917,13.03489963,126.1,126.09,7.75587977]
[1743260838819,7.934,126.1,126.09,7.75587977]
[1743260839020,13.03508278,126.1,126.09,7.75587977]
[1743260840222,7.9346,126.09,126.08,28.55905228]
[1743260847029,7.9346,126.09,126.08,0.05905228]
[1743260847235,33.07336182,126.1,126.05,28.42]
[1743260847528,6.51336182,126.08,126.05,28.42]
[1743260847729,6.51336182,126.08,126.04,120.93363301]
[1743260848227,7.936,126.07,126.04,157.31113301]
[1743260848420,7.99614425,126.07,126.05,0.05027244]
[1743260849534,7.9365,126.06,126.05,0.05027244]
[1743260851318,0.06014425,126.07,126.05,0.05027244]
[1743260851721,0.06014425,126.07,126.05,6.56363426]
[1743260852728,0.06014425,126.07,126.06,7.9365]
[1743260854423,0.06014425,126.07,126.06,9.36254188]
[1743260855135,0.06014425,126.07,126.06,1.42604188]
[1743260855331,0.06014425,126.07,126.05,6.56363426]
[1743260855829,0.06014425,126.07,126.05,39.54553417]
[1743260856035,7.99604425,126.07,126.05,39.54553417]
[1743260857036,0.06014425,126.07,126.05,39.54553417]
[1743260857237,0.06014425,126.07,126.05,47.48253417]
[1743260858236,0.06014425,126.07,126.06,7.9365]
[1743260862039,0.00109197,126.07,126.06,9.36265986]
[1743260862537,26.56,126.1,126.09,7.9346]
[1743260862737,26.56,126.1,126.09,36.6746]
[1743260863744,26.56,126.1,126.09,28.74]
[1743260864439,26.56,126.1,126.09,36.6746]
[1743260872642,49.65092162,126.11,126.1,7.934]
[1743260872841,49.65092162,126.11,126.1,14.44736182]
[1743260873342,49.65092162,126.11,126.1,15.87242736]
[1743260874645,49.65092162,126.11,126.1,14.44736182]
[1743260874945,49.65092162,126.11,126.1,15.87230802]
[1743260875147,49.65092162,126.11,126.1,14.44736182]
[1743260875339,49.65092162,126.11,126.1,19.73859276]
[1743260876240,49.65092162,126.11,126.1,21.16356632]
[1743260876438,49.65092162,126.11,126.1,19.73859276]
[1743260877743,49.65092162,126.11,126.1,14.44736182]
[1743260879654,49.65092162,126.11,126.1,43.06736182]
[1743260885847,49.65092162,126.11,126.1,35.13336182]
[1743260887154,49.65092162,126.11,126.1,43.06736182]
[1743260888655,29.83092162,126.11,126.1,43.06736182]
[1743260890057,29.83092162,126.11,126.1,14.44736182]
[1743260890258,29.83092162,126.11,126.1,42.96736182]
[1743260891964,51.56,126.12,126.11,7.9333]
[1743260892164,6.51336182,126.21,126.14,6.51336182]
[1743260892355,7.9293,126.18,126.15,28.5]
[1743260893163,7.98473894,126.18,126.15,28.55093424]
[1743260894769,19.81,126.17,126.15,28.55093424]
[1743260895465,19.81,126.17,126.15,36.48143424]
[1743260898769,19.81,126.17,126.15,28.55093424]
[1743260901077,27.7397,126.17,126.15,28.55093424]
[1743260901271,19.81,126.17,126.15,28.55093424]
[1743260902974,7.9302,126.16,126.15,28.55093424]
[1743260905171,7.9302,126.16,126.15,0.05093424]
[1743260905376,5.09810597,126.16,126.13,28.34]
[1743260905575,6.51336182,126.15,126.13,28.34]
[1743260906176,7.9315,126.14,126.13,28.34]
[1743260907470,6.56491828,126.15,126.12,28.37763794]
[1743260907867,6.56491828,126.15,126.12,0.05763794]
[1743260908476,5.10100243,126.14,126.12,0.05763794]
[1743260908777,6.56491828,126.15,126.12,0.05763794]
[1743260908979,5.10111277,126.14,126.12,0.05763794]
[1743260909179,6.56491828,126.15,126.12,0.05763794]
[1743260909370,5.10149745,126.14,126.12,0.05763794]
[1743260909570,6.56491828,126.15,126.12,0.05763794]
[1743260909773,5.10150617,126.14,126.12,0.05763794]
[1743260909973,6.56491828,126.15,126.12,0.05763794]
[1743260910178,5.10150831,126.14,126.12,0.05763794]
[1743260910373,6.56491828,126.15,126.12,0.05763794]
[1743260910574,7.9321,126.13,126.12,0.05763794]
[1743260910769,0.05155646,126.15,126.12,0.05763794]
[1743260911173,7.9318,126.14,126.12,0.05763794]
[1743260916882,0.05155646,126.15,126.12,0.05763794]
[1743260917182,6.56491828,126.15,126.12,0.05763794]
[1743260919387,7.9321,126.13,126.12,0.05763794]
[1743260926189,7.9321,126.13,126.12,28.37763794]
[1743260928689,39.62,126.14,126.12,28.37763794]
[1743260928885,39.62,126.14,126.13,6.51336182]
[1743260929085,31.36,126.16,126.13,6.51336182]
[1743260929287,31.36,126.16,126.15,14.44416182]
[1743260929487,31.36,126.16,126.15,42.76416182]
[1743260929792,21.1,126.17,126.15,34.83336182]
[1743260930289,21.15501304,126.17,126.15,34.89016158]
[1743260930485,0.05501304,126.17,126.16,7.9302]
[1743260934386,48.79,126.2,126.16,7.9302]
[1743260934387,48.79,126.2,126.16,9.34875106]
[1743260934592,48.79,126.2,126.18,14.44176182]
[1743260934791,48.79,126.2,126.19,28.32]
[1743260934989,48.79,126.2,126.19,36.2483]
[1743260935497,21.09,126.2,126.19,36.2483]
[1743260935996,267.99336182,126.3,126.21,6.51336182]
[1743260936196,267.99336182,126.3,126.19,401.65752569]
[1743260936197,5.09146253,126.29,126.24,6.51336182]
[1743260936494,5.09146253,126.28,126.25,28.32]
[1743260936695,267.99336182,126.3,126.26,28.32]
[1743260936890,5.13956057,126.29,126.27,0.05017743]
[1743260937096,5.08652915,126.28,126.27,0.05017743]
[1743260937298,7.9233,126.28,126.27,0.05017743]
[1743260937497,13.00557044,126.28,126.27,0.05017743]
[1743260938201,7.9233,126.28,126.27,0.05017743]
[1743260941395,11.58622051,126.28,126.23,28.3]
[1743260941596,6.51336182,126.26,126.23,28.3]
[1743260942504,6.56384306,126.26,126.23,28.35429886]
[1743260944694,7.9252,126.24,126.23,28.35429886]
[1743260944904,7.9252,126.24,126.23,0.05429886]
[1743260945204,14.43856182,126.24,126.23,0.05429886]
[1743260953213,7.9252,126.24,126.23,0.05429886]
[1743260956118,20.98048124,126.26,126.23,0.05429886]
[1743260956318,20.98048124,126.26,126.24,28.3]
[1743260956825,7.9243,126.25,126.24,28.3]
[1743260960523,20.98048124,126.26,126.24,28.3]
[1743260960723,27.49384306,126.26,126.24,28.3]
[1743260960925,7.9243,126.25,126.24,28.3]
[1743260965024,27.49384306,126.26,126.23,0.05429886]
[1743260965328,6.51336182,126.24,126.23,0.05429886]
[1743260965623,14.43836182,126.24,126.23,0.05429886]
[1743260970431,14.43836182,126.24,126.23,9.886e-05]
[1743260970931,19.52277394,126.24,126.23,9.886e-05]
[1743260974631,7.929,126.18,126.16,46.09100655]
[1743260974932,7.929,126.18,126.17,28.3]
[1743260976025,7.929,126.18,126.17,39.26510664]
[1743260977332,7.98739268,126.19,126.17,39.26510664]
[1743260978937,7.98739268,126.19,126.17,28.3]
[1743260979734,7.9287,126.18,126.17,28.3]
[1743260981636,7.9294,126.17,126.16,0.05031885]
[1743260981940,7.9294,126.17,126.16,28.35031885]
[1743260983036,7.9294,126.17,126.16,0.05031885]
[1743260983338,7.9294,126.17,126.16,28.35031885]
[1743260986228,7.9294,126.17,126.16,0.05031885]
[1743260986432,14.44276182,126.17,126.16,0.05031885]
[1743260993044,7.9294,126.17,126.16,0.05031885]
[1743260993242,6.5723545,126.19,126.16,0.05031885]
[1743260993946,7.9285,126.18,126.16,0.05031885]
[1743260995145,7.9285,126.18,126.16,28.35031885]
[1743260995948,7.9288,126.17,126.16,28.35031885]
[1743261007558,25.8084,126.18,126.16,28.35031885]
[1743261007860,17.88,126.18,126.16,28.35031885]
[1743261008055,17.88,126.18,126.17,7.9288]
[1743261008852,25.8081,126.18,126.16,28.35031885]
[1743261009259,17.88,126.18,126.16,36.27941885]
[1743261009453,14.6099,126.18,126.16,28.35031885]
[1743261009660,7.53899268,126.19,126.16,28.35031885]
[1743261009860,7.53899268,126.19,126.17,7.9283]
[1743261010964,7.53899268,126.19,126.16,28.35031885]
[1743261011163,7.53899268,126.19,126.17,6.51336182]
[1743261011957,7.53899268,126.19,126.18,7.9281]
[1743261012162,8.68546182,126.25,126.17,6.51336182]
[1743261012363,5.09672451,126.24,126.19,6.51336182]
[1743261012562,8.68546182,126.25,126.2,28.3]
[1743261012758,5.09675759,126.24,126.2,28.3]
[1743261012964,8.68546182,126.25,126.2,28.3]
[1743261013164,5.15235343,126.24,126.21,0.05196363]
[1743261013464,0.05560338,126.24,126.21,0.05196363]
[1743261013867,7.98010338,126.24,126.21,7.97786363]
[1743261020673,0.05560338,126.24,126.22,7.9255]
[1743261020863,0.05560338,126.24,126.23,28.3]
[1743261021374,7.98000338,126.24,126.23,28.3]
[1743261026179,0.05560338,126.24,126.23,28.3]
[1743261026681,7.98000338,126.24,126.23,28.3]
[1743261047907,0.05560338,126.24,126.23,28.3]
[1743261048607,0.05560338,126.24,126.23,36.225]
[1743261052998,0.05560338,126.24,126.23,28.3]
[1743261054107,7.98000338,126.24,126.23,28.3]
[1743261055112,0.05560338,126.24,126.23,28.3]
[1743261055712,0.05560338,126.24,126.23,36.225]
[1743261059616,0.05560338,126.24,126.23,42.73836182]
[1743261076526,0.05560338,126.24,126.23,34.81336182]
[1743261077325,0.05560338,126.24,126.23,42.73836182]
[1743261085535,0.05560338,126.24,126.23,58.95268163]
[1743261088636,0.05560338,126.24,126.23,84.00958154]
[1743261089828,0.05560338,126.24,126.23,91.93458154]
[1743261090232,7.98000338,126.24,126.23,49.19621972]
[1743261090429,7.98000338,126.24,126.23,64.38111972]
[1743261091430,7.925,126.23,126.22,3.13921981]
[1743261091637,7.925,126.23,126.22,31.39921981]
[1743261094432,7.925,126.23,126.22,28.26]
[1743261098735,7.925,126.23,126.21,0.05196363]
[1743261098938,7.925,126.23,126.21,28.31196363]
[1743261099945,19.615,126.23,126.21,28.31196363]
[1743261101541,7.9256,126.22,126.21,28.31196363]
[1743261101949,11.69,126.23,126.21,28.31196363]
[1743261102250,19.6155,126.23,126.21,28.31196363]
[1743261107651,7.9256,126.22,126.21,28.31196363]
[1743261109755,19.6152,126.23,126.21,28.31196363]
[1743261111150,11.69,126.23,126.21,28.31196363]
[1743261111658,11.69,126.23,126.22,6.51336182]
[1743261111956,11.69,126.23,126.22,14.43896182]
[1743261125462,11.69,126.23,126.22,6.51336182]
[1743261126563,19.615,126.23,126.21,28.31196363]
[1743261126865,11.69,126.23,126.22,28.26]
[1743261127062,11.69,126.23,126.21,0.05196363]
[1743261127259,11.69,126.23,126.21,28.31196363]
[1743261127858,7.9256,126.22,126.21,28.31196363]
[1743261128968,19.6153,126.23,126.21,28.31196363]
[1743261129362,11.69,126.23,126.21,28.31196363]
[1743261129861,11.69,126.23,126.21,36.23816363]
[1743261130258,19.615,126.23,126.21,28.31196363]
[1743261134067,19.615,126.23,126.21,36.23816363]
[1743261135071,19.615,126.23,126.21,28.31196363]
[1743261135574,7.9256,126.22,126.21,28.31196363]
[1743261136573,7.9256,126.22,126.21,0.05196363]
[1743261138078,12.9740501,126.22,126.21,0.05196363]
[1743261138376,7.9256,126.22,126.21,0.05196363]
[1743261139483,19.6153,126.23,126.21,0.05196363]
[1743261141081,7.9256,126.22,126.21,0.05196363]
[1743261145685,12.97193259,126.22,126.21,0.05196363]
[1743261147283,12.97133652,126.22,126.21,0.05196363]
[1743261153290,12.96744679,126.22,126.21,0.05196363]
[1743261154292,7.9256,126.22,126.21,0.05196363]
[1743261155890,14.43896182,126.22,126.21,6.363e-05]
[1743261156090,13.6744067,126.22,126.18,28.26]
[1743261156290,5.04054488,126.21,126.18,28.26]
[1743261156592,7.9294,126.16,126.15,10.96875708]
[1743261156785,7.9294,126.16,126.15,39.22875708]
[1743261157789,7.9294,126.16,126.15,72.21065699]
[1743261159600,9.31446061,126.17,126.15,72.21065699]
[1743261160890,1.38536061,126.17,126.15,34.77336182]
[1743261161597,1.38536061,126.17,126.15,42.70296182]
[1743261163487,9.31426061,126.17,126.15,42.70296182]
[1743261163686,1.38536061,126.17,126.15,42.70296182]
[1743261163997,9.31416061,126.17,126.15,28.26]
[1743261164597,1.38536061,126.17,126.15,36.1897]
[1743261165194,9.31426061,126.17,126.15,28.26]
[1743261165899,9.31426061,126.17,126.15,36.1899]
[1743261167199,1.38536061,126.17,126.15,36.1899]
[1743261167497,1.38536061,126.17,126.15,7.9299]
[1743261167692,9.31416061,126.17,126.16,28.26]
[1743261168900,1.38536061,126.17,126.16,28.26]
[1743261174913,1.38536061,126.17,126.16,36.1894]
[1743261175712,7.9266,126.21,126.18,7.9281]
[1743261175917,7.9266,126.21,126.19,28.26]
[1743261176815,7.97662185,126.21,126.19,28.31693156]
[1743261177417,0.05002185,126.21,126.19,34.83029338]
[1743261177612,6.51336182,126.26,126.19,34.83029338]
[1743261177817,5.04014972,126.25,126.21,6.51336182]
[1743261178120,7.9232,126.26,126.22,28.26]
[1743261178417,5.04013814,126.25,126.23,7.9249]
[1743261178719,7.9239,126.25,126.22,28.26]
[1743261178922,0.05739885,126.25,126.23,0.05355118]
[1743261179717,7.9244,126.24,126.23,0.05355118]
[1743261185317,12.96322759,126.24,126.23,0.05355118]
[1743261185824,19.47658941,126.24,126.23,0.05355118]
[1743261189127,12.96322759,126.24,126.23,0.05355118]
[1743261189322,7.9244,126.24,126.23,0.05355118]
[1743261194333,7.9244,126.24,126.16,410.02415699]
[1743261194334,7.9269,126.2,126.19,6.51336182]
[1743261194635,7.9269,126.2,126.19,28.24]
[1743261198149,7.9269,126.2,126.18,0.05693685]
[1743261198341,7.9269,126.2,126.19,28.24]
[1743261200843,37.94895424,126.21,126.18,0.05693685]
[1743261201048,37.94895424,126.21,126.18,28.29693685]
[1743261201646,7.9275,126.19,126.18,28.29693685]
[1743261201844,7.9275,126.19,126.18,0.05693685]
[1743261205552,7.9299,126.16,126.13,424.56461881]
[1743261205751,7.9299,126.16,126.14,28.24]
[1743261206650,7.99088579,126.16,126.14,36.22318101]
[1743261206854,7.99088579,126.16,126.14,28.29258101]
[1743261208755,7.99088579,126.16,126.14,0.05258101]
[1743261208951,7.99088579,126.16,126.15,28.24]
[1743261210359,0.06098579,126.16,126.15,28.24]
[1743261211256,7.99038579,126.16,126.15,28.24]
[1743261211956,7.99038579,126.16,126.14,0.05258101]
[1743261212156,7.99038579,126.16,126.15,28.24]
[1743261213858,7.99038579,126.16,126.14,0.05258101]
[1743261214060,7.99038579,126.16,126.15,28.24]
[1743261215958,0.06098579,126.16,126.15,28.24]
[1743261216167,37.89,126.21,126.15,34.75336182]
[1743261216458,37.89,126.21,126.19,14.44056182]
[1743261216664,37.89,126.21,126.2,28.24]
[1743261217359,37.89,126.21,126.2,36.1669]
[1743261217862,26.21,126.21,126.2,36.1669]
[1743261220267,0.05136692,126.22,126.21,7.9263]
[1743261220468,7.9241,126.25,126.21,6.51336182]
[1743261220859,7.9241,126.25,126.22,7.9251]
[1743261221163,7.9241,126.25,126.23,28.24]
[1743261221663,7.98084522,126.25,126.23,28.29342643]
[1743261222167,0.05674522,126.25,126.23,34.80678825]
[1743261222467,0.05674522,126.25,126.24,7.9244]
[1743261224064,0.05674522,126.25,126.23,42.73148825]
[1743261224466,0.05674522,126.25,126.23,34.80678825]
[1743261226166,0.05674522,126.25,126.23,42.73138825]
[1743261226366,0.05674522,126.25,126.23,34.80678825]
[1743261227071,7.922,126.28,126.23,34.80678825]
[1743261227271,7.922,126.28,126.25,6.51336182]
[1743261227469,7.922,126.28,126.26,28.24]
[1743261228274,7.97489303,126.28,126.26,28.29973731]
[1743261230677,7.9225,126.27,126.26,28.29973731]
[1743261233575,11.72289303,126.28,126.26,28.29973731]
[1743261233774,11.72289303,126.28,126.27,6.51336182]
[1743261233975,11.72289303,126.28,126.27,14.43586182]
[1743261235176,7.919,126.33,126.29,7.9208]
[1743261235477,6.51336182,126.37,126.32,6.51336182]
[1743261235780,269.86486182,126.4,126.34,6.51336182]
[1743261235983,27.56,126.36,126.35,28.22]
[1743261237286,35.477,126.36,126.35,28.22]
[1743261244089,7.9175,126.35,126.34,0.05622363]
[1743261245992,7.92,126.31,126.3,370.51336182]
[1743261246191,7.92,126.31,126.3,34.71336182]
[1743261247193,7.97002895,126.32,126.3,34.71336182]
[1743261247393,0.05032895,126.32,126.31,28.2]
[1743261247583,7.96972895,126.32,126.31,28.2]
[1743261250795,0.05032895,126.32,126.31,28.2]
[1743261251394,0.05032895,126.32,126.31,36.12]
[1743261251592,0.05032895,126.32,126.31,28.2]
[1743261257503,7.96972895,126.32,126.31,28.2]
[1743261258803,0.05032895,126.32,126.31,28.2]
[1743261259403,0.05032895,126.32,126.31,36.12]
[1743261261906,27.56,126.36,126.34,7.918]
[1743261262206,27.56,126.36,126.35,28.2]
[1743261264107,27.56,126.36,126.35,36.1175]
[1743261264798,18.80576152,126.36,126.35,42.63086182]
[1743261264997,0.0466909,126.37,126.36,7.9169]
[1743261266208,0.0466909,126.37,126.35,42.63056182]
[1743261266411,0.0466909,126.37,126.35,34.71336182]
[1743261268010,0.0466909,126.37,126.35,42.63086182]
[1743261268211,0.0466909,126.37,126.35,34.71336182]
[1743261268708,7.9629909,126.37,126.35,34.71336182]
[1743261270107,0.0466909,126.37,126.34,0.0504432]
[1743261270412,0.0466909,126.37,126.35,28.18]
[1743261270604,7.9169,126.36,126.35,28.18]
[1743261272717,6.51336182,126.36,126.34,0.0504432]
[1743261272911,8.49856182,126.36,126.34,0.0504432]
[1743261273316,8.49856182,126.36,126.33,28.18]
[1743261273816,7.9187,126.33,126.32,43.95065699]
[1743261274119,8.49856182,126.36,126.31,28.18]
[1743261274415,0.05138656,126.35,126.32,0.05942288]
[1743261275616,7.9187,126.33,126.32,0.05942288]
[1743261280611,6.51336182,126.34,126.31,28.18]
[1743261280814,6.51336182,126.34,126.3,28.18]
[1743261281518,6.51336182,126.32,126.28,43.95065699]
[1743261281717,0.05313894,126.31,126.29,28.24051164]
[1743261282516,0.05313894,126.31,126.29,0.06051164]
[1743261282717,7.9206,126.3,126.29,0.06051164]
[1743261298323,14.43396182,126.3,126.29,1.164e-05]
[1743261298528,7.9238,126.25,126.23,10.96875708]
[1743261298831,8.67986182,126.3,126.24,28.2]
[1743261299223,7.9234,126.26,126.24,28.2]
[1743261299623,7.98098774,126.26,126.25,28.2]
[1743261301327,0.05758774,126.26,126.25,28.2]
[1743261302630,0.05758774,126.26,126.25,36.1238]
[1743261304230,24.68,126.29,126.25,28.2]
[1743261304530,24.68,126.29,126.26,6.51336182]
[1743261304830,24.68,126.29,126.28,7.9219]
[1743261305125,24.68,126.29,126.28,36.1219]
[1743261305930,0.05913427,126.3,126.28,36.1219]
[1743261306833,0.05913427,126.3,126.29,7.9212]
[1743261310336,0.05913427,126.3,126.28,28.2]
[1743261312434,0.05913427,126.3,126.28,36.1218]
[1743261312638,0.05913427,126.3,126.28,28.2]
[1743261312938,0.05913427,126.3,126.28,34.71336182]
[1743261313630,0.05913427,126.3,126.29,7.9212]
[1743261314028,0.05913427,126.3,126.28,42.63496182]
[1743261314539,0.05913427,126.3,126.29,7.9212]
[1743261317241,27.13,126.33,126.29,7.92]
[1743261317437,27.13,126.33,126.32,6.51336182]
[1743261317641,27.13,126.33,126.32,34.69336182]
[1743261317941,7.9172,126.36,126.33,7.9185]
[1743261318241,0.0521984,126.36,126.34,7.918]
[1743261318535,0.0521984,126.36,126.35,28.18]